fUSD/lending_fUSD_20240107
["ID","MTS","AMOUNT","RATE_DAILY","PERIOD"]
[310642690,1704611452215,-2667.23,0.00022997,2]
[310642691,1704611452225,-2667.23,0.00022997,2]
[310642692,1704611452235,-500.0,0.00022997,2]
[310642693,1704611452244,-500.0,0.00022997,2]
[310642694,1704611452254,-500.0,0.00022997,2]
[310642695,1704611452263,-500.0,0.00022997,2]
[310642696,1704611452274,-748.09568838,0.00022997,2]
[310642697,1704611452676,-2050.46280883,0.00022877,2]
[310642698,1704611452687,-500.0,0.00022879,2]
[310642699,1704611452698,-101.79431162,0.00022997,2]
[310642700,1704611452708,-500.0,0.00022997,5]
[310642701,1704611452719,-849.89,0.00022997,2]
[310642702,1704611452729,-500.0,0.00022997,5]
[310642703,1704611452739,-849.89,0.00022997,2]
[310642704,1704611452750,-500.0,0.00022997,5]
[310642705,1704611452761,-849.89,0.00022997,2]
[310642706,1704611452771,-500.0,0.00022997,2]
[310642707,1704611452781,-500.00998732,0.00022997,2]
[310642708,1704611452792,-510.81802815,0.00022997,2]
[310642709,1704611452803,-500.0,0.00022997,2]
[310642710,1704611452813,-500.0,0.00022997,2]
[310642711,1704611452826,-500.0,0.00022997,2]
[310642712,1704611452836,-500.0,0.00022997,2]
[310642713,1704611452847,-2026.0,0.00022997,2]
[310642714,1704611452857,-2026.0,0.00022997,2]
[310642715,1704611452869,-2026.0,0.00022997,2]
[310642716,1704611452879,-500.0,0.00022997,2]
[310642717,1704611452889,-500.0,0.00022997,2]
[310642718,1704611452900,-500.0,0.00022997,2]
[310642719,1704611452912,-500.0,0.00022997,2]
[310642720,1704611452922,-500.0,0.00022997,2]
[310642721,1704611452932,-500.0,0.00022997,2]
[310642722,1704611452941,-500.0,0.00022997,2]
[310642723,1704611452951,-500.0,0.00022997,2]
[310642724,1704611452961,-845.84,0.00022997,2]
[310642725,1704611452970,-603.87215457,0.00022997,2]
[310642726,1704611452983,-241.96784543,0.00022997,2]
[310642727,1704611452993,-410.41310055,0.00022997,2]
[310642728,1704611453005,-123.38689945,0.00022997,2]
[310642729,1704611453015,-376.61310055,0.00022997,2]
[310642730,1704611453027,-440.65,0.00022997,2]
[310642731,1704611453039,-28.57689945,0.00022997,2]
[310642732,1704611453048,-845.84,0.00022997,2]
[310642733,1704611453058,-266.64806752,0.00022997,2]
[310642734,1704611453070,-35.59193248,0.00022997,2]
[310642735,1704611453080,-589.86,0.00022997,2]
[310642736,1704611453089,-110.74544468,0.00022997,2]
[310642737,1704611505506,190.29,0.00020216,2]
[310642738,1704611505709,190.29,0.0002248,2]
[310642739,1704611545904,153.44,0.00022256,2]
[310642740,1704611689222,555.71,0.00022018,2]
[310642741,1704611780182,179.88,0.00022004,2]
[310642742,1704611937201,171.26,0.00020105,2]
[310642743,1704611937389,171.26,0.00022369,2]
[310642744,1704612087539,212.54,0.00022034,2]
[310642745,1704612093799,204.0,0.00021744,2]
[310642746,1704612174776,555.43,0.00022111,2]
[310642747,1704612192553,167.88,0.00022052,2]
[310642749,1704612368352,-150.0,0.00022672,2]
[310642750,1704612368375,-5246.0,0.00022769,2]
[310642751,1704612368398,-162.1981688,0.00022779,2]
[310642752,1704612368419,-2101.52653987,0.00022878,2]
[310642753,1704612368441,-156.24527716,0.00022878,2]
[310642754,1704612368463,-201.21609609,0.00022878,2]
[310642755,1704612368483,-321.26087976,0.00022878,2]
[310642756,1704612368505,-500.0,0.00022879,2]
[310642757,1704612368527,-500.0,0.00022879,2]
[310642758,1704612368548,-500.0,0.00022879,2]
[310642759,1704612368570,-500.0,0.00022879,2]
[310642760,1704612368591,-500.0,0.00022879,2]
[310642761,1704612368612,-161.55303832,0.00022879,2]
[310642762,1704612421693,154.13,0.00020168,2]
[310642763,1704612421908,154.13,0.00022432,2]
[310642772,1704612631573,-505.75998907,0.00022879,2]
[310642773,1704612631585,-513.22637473,0.00022879,2]
[310642774,1704612631594,-135.49734371,0.00022879,2]
[310642775,1704612631630,-96.69035465,0.00022879,2]
[310642776,1704612631639,-185.64227068,0.00022879,2]
[310642777,1704612631683,-314.35772932,0.00022879,2]
[310642778,1704612631693,-399.73884358,0.00022879,2]
[310642779,1704612631738,-101.29616855,0.00022879,2]
[310642780,1704612631748,-500.0,0.00022879,2]
[310642781,1704612631758,-220.43273963,0.00022897,2]
[310642782,1704612631768,-500.0,0.00022897,2]
[310642783,1704612631777,-4854.63174521,0.00022898,2]
[310642784,1704612631789,-474.72799163,0.00022898,2]
[310642785,1704612631801,-199.76636316,0.00022898,2]
[310642786,1704612631811,-157.81242353,0.00022898,2]
[310642787,1704612631821,-157.81242353,0.00022898,2]
[310642788,1704612631831,-96.98230657,0.00022899,2]
[310642789,1704612631847,-60.83011696,0.00022899,2]
[310642790,1704612631857,-157.81242353,0.00022899,2]
[310642791,1704612631866,-157.81242353,0.000229,2]
[310642792,1704612631876,-610.28429361,0.000229,2]
[310642793,1704612631885,-157.81242353,0.000229,2]
[310642794,1704612631894,-510.27023333,0.000229,2]
[310642795,1704612631915,-257.95941426,0.000229,2]
[310642796,1704612631929,-96.92930493,0.000229,2]
[310642797,1704612631939,-343.54365622,0.00022938,2]
[310642798,1704612631957,-546.3853,0.00022938,2]
[310642799,1704612637593,-316.237,0.00022938,2]
[310642800,1704612637602,-577.79,0.00022938,2]
[310642801,1704612637612,-6798.10032429,0.00022938,2]
[310642802,1704612637624,-7999.1565,0.00022938,2]
[310642803,1704612637972,-4856.74317571,0.00022938,2]
[310642804,1704612637982,-771.178,0.00022938,2]
[310642805,1704612637992,-834.0,0.00022938,2]
[310642806,1704612638002,-1234.0,0.00022938,2]
[310642807,1704612638013,-1254.0,0.00022938,2]
[310642808,1704612638022,-42813.86370074,0.0002294,2]
[310642810,1704612640160,-498.1733841,0.0002294,2]
[310642813,1704612640279,-1807.65857259,0.0002294,2]
[310642814,1704612640291,-708.16605636,0.0002294,2]
[310642815,1704612640304,-501.7001713,0.0002294,2]
[310642816,1704612640315,-268.51791053,0.0002294,2]
[310642817,1704612640985,-227.436,0.00022938,2]
[310642818,1704612640995,-996.03628385,0.0002294,2]
[310642819,1704612641006,-2777.58006446,0.0002294,2]
[310642820,1704612641042,-355.32,0.0002294,2]
[310642828,1704612641229,-52.76421617,0.0002294,2]
[310642830,1704612641239,-155.0,0.00022996,2]
[310642833,1704612641249,-2613.32261791,0.00022996,2]
[310642835,1704612641258,-1060.41866078,0.00022996,2]
[310642837,1704612641268,-500.0,0.00022996,2]
[310642838,1704612641278,-3.50107155,0.00022996,2]
[310642844,1704612642664,-1928.0,0.00022932,2]
[310642845,1704612642674,-2870.39892845,0.00022996,2]
[310642847,1704612642685,-2000.0,0.00022997,2]
[310642848,1704612642694,-200.0,0.00022997,2]
[310642849,1704612642704,-164.57,0.00022997,2]
[310642850,1704612642714,-500.0,0.00022997,2]
[310642851,1704612642723,-404.45467782,0.00022997,2]
[310642852,1704612642733,-200.0,0.00022997,2]
[310642853,1704612642742,-500.0,0.00022997,2]
[310642854,1704612642751,-500.0,0.00022997,2]
[310642855,1704612642761,-500.0,0.00022997,2]
[310642856,1704612642771,-500.0,0.00022997,2]
[310642857,1704612642781,-500.0,0.00022997,2]
[310642858,1704612642790,-599.14,0.00022997,2]
[310642859,1704612642799,-500.0,0.00022997,2]
[310642860,1704612642808,-554.6602757,0.00022997,2]
[310642861,1704612642817,-707.11,0.00022997,2]
[310642862,1704612642827,-500.0,0.00022997,2]
[310642863,1704612642836,-500.0,0.00022997,2]
[310642864,1704612642846,-500.0,0.00022997,2]
[310642865,1704612642855,-500.0,0.00022997,2]
[310642866,1704612642865,-445.05,0.00022997,2]
[310642867,1704612642875,-832.07,0.00022997,2]
[310642868,1704612642884,-500.0,0.00022997,2]
[310642869,1704612642894,-500.0,0.00022997,2]
[310642870,1704612642903,-500.0,0.00022997,2]
[310642871,1704612642913,-576.44,0.00022997,2]
[310642872,1704612642922,-500.0,0.00022997,2]
[310642873,1704612642932,-500.0,0.00022997,2]
[310642874,1704612642941,-500.0,0.00022997,2]
[310642875,1704612642951,-500.0,0.00022997,2]
[310642876,1704612642962,-500.0,0.00022997,2]
[310642877,1704612642972,-500.0,0.00022997,2]
[310642878,1704612642981,-586.73,0.00022997,2]
[310642879,1704612642991,-500.0,0.00022997,2]
[310642880,1704612643001,-3930.97,0.00022997,2]
[310642881,1704612643011,-500.0,0.00022997,2]
[310642882,1704612643021,-273.60110361,0.00022997,2]
[310642883,1704612643032,-500.0,0.00022997,2]
[310642884,1704612643042,-500.0,0.00022997,2]
[310642885,1704612643051,-500.0,0.00022997,2]
[310642886,1704612643061,-1110.34,0.00022997,2]
[310642887,1704612643071,-500.0,0.00022997,2]
[310642888,1704612643080,-599.27,0.00022997,2]
[310642889,1704612643089,-500.0,0.00022997,2]
[310642890,1704612643099,-500.0,0.00022997,2]
[310642891,1704612643109,-1889.28,0.00022997,2]
[310642892,1704612643118,-544.01779248,0.00022997,2]
[310642893,1704612643128,-500.0,0.00022997,5]
[310642894,1704612643137,-602.01,0.00022997,2]
[310642895,1704612643147,-1435.08,0.00022997,2]
[310642896,1704612643156,-500.0,0.00022997,2]
[310642897,1704612643166,-500.0,0.00022997,2]
[310642898,1704612643176,-150.0,0.00022997,2]
[310642899,1704612643187,-500.0,0.00022997,2]
[310642900,1704612643196,-522.90339586,0.00022997,2]
[310642901,1704612643206,-500.0,0.00022997,2]
[310642902,1704612643215,-500.0,0.00022997,2]
[310642903,1704612643225,-500.0,0.00022997,2]
[310642904,1704612643235,-500.0,0.00022997,2]
[310642905,1704612643245,-500.0,0.00022997,2]
[310642906,1704612643256,-691.83,0.00022997,2]
[310642907,1704612643265,-500.0,0.00022997,2]
[310642908,1704612643275,-500.0,0.00022997,2]
[310642909,1704612643287,-274.34518418,0.00022997,2]
[310642910,1704612643299,-500.0,0.00022997,2]
[310642911,1704612643310,-500.0,0.00022997,2]
[310642912,1704612643320,-500.0,0.00022997,2]
[310642913,1704612643330,-500.0,0.00022997,2]
[310642914,1704612643339,-281.36,0.00022997,2]
[310642915,1704612643348,-669.44,0.00022997,2]
[310642916,1704612643357,-12694.16005357,0.00022998,2]
[310642917,1704612643398,-35451.52372438,0.00022998,2]
[310642918,1704612643413,-448.88261105,0.00022998,2]
[310642919,1704612643430,-8747.51667951,0.00022998,2]
[310642921,1704612645738,-5896.95751775,0.00022998,2]
[310642922,1704612645797,-520.27750325,0.00022998,2]
[310642923,1704612645912,-4391.8,0.00022998,2]
[310642924,1704612712016,555.65,0.00022448,2]
[310642925,1704612945525,154.13,0.00020397,2]
[310642926,1704613043022,10731.02,0.00022236,2]
[310642927,1704613044778,-1616.0,0.00022769,2]
[310642928,1704613044802,-161.41739144,0.00022798,2]
[310642929,1704613044824,-156.68,0.00022867,2]
[310642930,1704613044847,-158.84626651,0.00022898,2]
[310642931,1704613044870,-6326.1007,0.00022898,2]
[310642932,1704613044891,-875.7934,0.00022898,2]
[310642933,1704613044913,-250.0,0.00022899,2]
[310642934,1704613044935,-337.83904846,0.000229,2]
[310642935,1704613044957,-417.81755705,0.000229,2]
[310642936,1704613044980,-1276.06832276,0.000229,2]
[310642937,1704613045004,-154.13,0.00022928,2]
[310642938,1704613045026,-19654.0,0.00022938,2]
[310642939,1704613045048,-234.6196376,0.00022996,2]
[310642940,1704613045072,-2616.96837247,0.00022996,2]
[310642941,1704613045094,-4899.02702994,0.00022996,2]
[310642942,1704613045116,-164.87695483,0.00022996,2]
[310642943,1704613045137,-155.0,0.00022996,2]
[310642944,1704613045159,-156.0189859,0.00022996,2]
[310642945,1704613045182,-500.0,0.00022997,2]
[310642946,1704613045203,-156.99484246,0.00022997,2]
[310642947,1704613045226,-500.0,0.00022997,2]
[310642948,1704613045249,-500.0,0.00022997,2]
[310642949,1704613045271,-500.0,0.00022997,2]
[310642950,1704613045294,-325.86,0.00022997,2]
[310642951,1704613045317,-1375.29,0.00022997,2]
[310642952,1704613045339,-1375.29,0.00022997,2]
[310642953,1704613045363,-500.0,0.00022997,2]
[310642954,1704613045388,-266.64806752,0.00022997,2]
[310642955,1704613045412,-500.0,0.00022997,2]
[310642956,1704613045435,-596.85,0.00022997,2]
[310642957,1704613045458,-500.0,0.00022997,2]
[310642958,1704613045481,-500.0,0.00022997,2]
[310642959,1704613045505,-663.0,0.00022997,2]
[310642960,1704613045527,-663.0,0.00022997,2]
[310642961,1704613045551,-500.0,0.00022997,2]
[310642962,1704613045573,-500.0,0.00022997,2]
[310642963,1704613045596,-500.0,0.00022997,2]
[310642964,1704613045618,-500.0,0.00022997,2]
[310642965,1704613045642,-500.0,0.00022997,2]
[310642966,1704613045664,-500.0,0.00022997,2]
[310642967,1704613045687,-500.0,0.00022997,2]
[310642968,1704613045710,-500.0,0.00022997,2]
[310642969,1704613045732,-500.0,0.00022997,2]
[310642970,1704613045755,-500.0,0.00022997,2]
[310642971,1704613045777,-500.0,0.00022997,2]
[310642972,1704613045801,-500.0,0.00022997,2]
[310642973,1704613045826,-500.0,0.00022997,2]
[310642974,1704613045850,-797.4,0.00022997,2]
[310642975,1704613045872,-797.4,0.00022997,2]
[310642976,1704613045894,-500.0,0.00022997,2]
[310642977,1704613045916,-500.00000062,0.00022997,2]
[310642978,1704613045940,-550.36,0.00022997,2]
[310642979,1704613045966,-500.0,0.00022997,2]
[310642980,1704613045988,-519.44962459,0.00022997,2]
[310642981,1704613046011,-552.42,0.00022997,2]
[310642982,1704613046034,-552.42,0.00022997,2]
[310642983,1704613046060,-500.0,0.00022997,2]
[310642984,1704613046083,-625.48,0.00022997,2]
[310642985,1704613046106,-500.0,0.00022997,2]
[310642986,1704613046129,-500.0,0.00022997,2]
[310642987,1704613046152,-500.0,0.00022997,2]
[310642988,1704613046175,-500.0,0.00022997,2]
[310642989,1704613046361,-217.46,0.00022997,2]
[310642990,1704613046384,-500.0,0.00022997,2]
[310642991,1704613046411,-500.0,0.00022997,2]
[310642992,1704613046433,-3767.18,0.00022997,2]
[310642993,1704613046456,-3767.18,0.00022997,2]
[310642994,1704613046481,-500.0,0.00022997,2]
[310642995,1704613046507,-562.28,0.00022997,2]
[310642996,1704613046530,-562.28,0.00022997,2]
[310642997,1704613046556,-500.0,0.00022997,2]
[310642998,1704613046581,-500.0,0.00022997,2]
[310642999,1704613046604,-500.0,0.00022997,2]
[310643000,1704613046629,-500.0,0.00022997,2]
[310643001,1704613046652,-1064.07,0.00022997,2]
[310643002,1704613046676,-500.0,0.00022997,2]
[310643003,1704613046698,-500.0,0.00022997,2]
[310643004,1704613046721,-500.0,0.00022997,2]
[310643005,1704613046743,-500.0,0.00022997,2]
[310643006,1704613046766,-500.0,0.00022997,2]
[310643007,1704613046787,-574.3,0.00022997,2]
[310643008,1704613046810,-677.65,0.00022997,2]
[310643009,1704613046837,-677.65,0.00022997,2]
[310643010,1704613046860,-500.0,0.00022997,2]
[310643011,1704613046885,-1810.56,0.00022997,2]
[310643012,1704613046908,-576.93,0.00022997,2]
[310643013,1704613046931,-576.93,0.00022997,2]
[310643014,1704613047097,500.0,0.00022997,5]
[310643015,1704613047126,380.25032639,0.000229,2]
[310643016,1704613054673,594.84419278,0.00022997,2]
[310643017,1704613056521,1260.68,0.00022997,2]
[310643018,1704613070225,155.43858488,0.00022997,2]
[310643019,1704613083124,506.86,0.00022997,2]
[310643020,1704613088637,500.0,0.00022997,2]
[310643021,1704613090284,607.75,0.00022997,2]
[310643022,1704613090753,500.0,0.00022997,2]
[310643023,1704613091030,500.0,0.00022997,2]
[310643024,1704613100192,500.0,0.00022997,2]
[310643025,1704613104978,155.0,0.00022997,2]
[310643026,1704613109729,500.0,0.00022997,2]
[310643027,1704613110034,500.0,0.00022997,2]
[310643028,1704613115334,599.88,0.00022997,2]
[310643029,1704613118712,500.0,0.00022997,2]
[310643030,1704613119063,388.81,0.00022997,2]
[310643031,1704613122974,155.0,0.00022997,2]
[310643032,1704613124418,299.62,0.00022997,2]
[310643033,1704613135457,500.0,0.00022997,2]
[310643034,1704613140328,500.0,0.00022997,2]
[310643035,1704613142985,155.0,0.00022997,2]
[310643036,1704613149404,-50000.0,0.00022998,2]
[310643037,1704613159184,730.95,0.00022997,2]
[310643038,1704613159341,555.48,0.00022982,2]
[310643039,1704613160833,1400.3846066,0.000229,6]
[310643040,1704613164983,155.0,0.00022997,2]
[310643041,1704613172603,610.61,0.00022997,2]
[310643042,1704613172872,610.61,0.00022997,2]
[310643043,1704613176456,414.2960872,0.00022997,2]
[310643044,1704613231902,175.0,0.00018695,2]
[310643045,1704613237795,154.0,0.00018695,2]
[310643046,1704613258937,8023.31290549,0.00018695,2]
[310643047,1704613277093,4457.39605861,0.00018695,2]
[310643048,1704613294958,4457.39605861,0.00018695,2]
[310643049,1704613312946,2322.30334653,0.00018695,2]
[310643050,1704613332971,2322.30334653,0.00018695,2]
[310643051,1704613348973,2322.30334653,0.00018695,2]
[310643052,1704613366954,2322.30334653,0.00018695,2]
[310643053,1704613388547,-156.68,0.00022827,2]
[310643054,1704613392964,2322.30334653,0.00018695,2]
[310643055,1704613406744,-2000.0,0.000229,2]
[310643056,1704613409008,2322.30334653,0.00018695,2]
[310643057,1704613430964,2322.30334653,0.00018695,2]
[310643058,1704613435990,155.72,0.00020917,2]
[310643059,1704613452982,2322.30334653,0.00018695,2]
[310643060,1704613472975,2322.30334653,0.00018695,2]
[310643061,1704613488975,2305.72756354,0.00018695,2]
[310643062,1704613589900,1309.9670159,0.0003,120]
[310643066,1704613731697,420.7015329,0.00022076,2]
[310643070,1704613761692,361.29730067,0.00018397,2]
[310643075,1704613795923,-503.18424288,0.00022998,5]
[310643076,1704613797681,184.74859158,0.00018397,2]
[310643077,1704613807770,7410.66381965,0.00018397,2]
[310643078,1704613808510,5181.21295749,0.00018397,2]
[310643079,1704613812169,1596.26606265,0.00014718,2]
[310643080,1704613812232,1879.73653348,0.00018397,2]
[310643081,1704613812521,18929.87173977,0.00018397,2]
[310643082,1704613812564,401.51098679,0.00017845,2]
[310643083,1704613816893,6071.70174646,0.00018397,2]
[310643084,1704613817263,15674.02716097,0.00018397,2]
[310643085,1704613823779,7410.66381965,0.00018397,2]
[310643086,1704613826520,5215.89409189,0.00018397,2]
[310643087,1704613826552,401.51098679,0.00017845,2]
[310643088,1704613828183,1596.26606265,0.00014718,2]
[310643089,1704613828511,18914.28737435,0.00018397,2]
[310643090,1704613829434,-530.5479657,0.00027397,30]
[310643091,1704613830232,1879.73653348,0.00018397,2]
[310643092,1704613831260,15674.02716097,0.00018397,2]
[310643098,1704613831893,-156.68,0.00022748,2]
[310643099,1704613831903,-488.1967309,0.00022819,2]
[310643100,1704613832062,-67.4132691,0.00022819,2]
[310643101,1704613832072,-202.80370712,0.000229,2]
[310643102,1704613832121,-549.19629288,0.000229,2]
[310643103,1704613832131,-431.58293283,0.000229,2]
[310643104,1704613832143,-3349.92499309,0.000229,2]
[310643122,1704613832887,6047.6831571,0.00018397,2]
[310643126,1704613837806,-4871.091,0.000229,2]
[310643127,1704613837861,-7980.00014775,0.000229,2]
[310643128,1704613837971,-261.99836,0.000229,2]
[310643129,1704613838080,-2551.7428244,0.000229,2]
[310643130,1704613838190,-297.95969228,0.000229,2]
[310643131,1704613838209,-5512.33007455,0.000229,2]
[310643132,1704613838227,-506.995638,0.000229,2]
[310643133,1704613838299,-313.27,0.000229,2]
[310643141,1704613839773,2902.78255182,0.00018397,2]
[310643148,1704613840434,-10.7735039,0.000229,2]
[310643149,1704613840446,-4481.3308332,0.000229,2]
[310643150,1704613840457,-834.0,0.00022938,2]
[310643151,1704613840467,-877.314,0.00022938,2]
[310643152,1704613840477,-486.332,0.00022938,2]
[310643153,1704613840486,-1506.409,0.00022938,2]
[310643154,1704613840495,-873.17389798,0.00022938,2]
[310643162,1704613842772,-3695.92962752,0.00022938,2]
[310643163,1704613843006,-600.0,0.00026,27]
[310643164,1704613843144,-13337.53177899,0.00022938,2]
[310643165,1704613843156,-1234.74410064,0.00022938,2]
[310643170,1704613845805,-512.62059487,0.00022938,2]
[310643171,1704613845815,-33.38540513,0.00022938,2]
[310643172,1704613845827,-116.61459487,0.00022938,2]
[310643173,1704613845836,-196.814422,0.00022997,2]
[310643174,1704613845849,-500.0,0.00022997,2]
[310643175,1704613845859,-288.05901979,0.00022997,2]
[310643176,1704613846120,-211.94098021,0.00022997,2]
[310643177,1704613846129,-52.73759115,0.00022997,2]
[310643178,1704613846144,-447.26240885,0.00022997,2]
[310643179,1704613846153,-214.49759115,0.00022997,2]
[310643180,1704613846165,-285.50240885,0.00022997,2]
[310643181,1704613846175,-139.89759215,0.00022997,2]
[310643182,1704613846192,-360.10240785,0.00022997,2]
[310643183,1704613846201,-529.91484872,0.00022997,2]
[310643184,1704613846212,-500.0,0.00022997,2]
[310643186,1704613846222,-500.0,0.00022997,2]
[310643188,1704613846232,-500.0,0.00022997,2]
[310643190,1704613846241,-500.0,0.00022997,2]
[310643192,1704613846251,-470.77449688,0.00022997,2]
[310643194,1704613846263,-79.59550312,0.00022997,2]
[310643196,1704613846272,-360.14119082,0.00022997,2]
[310643198,1704613846293,-1374.97880918,0.00022997,2]
[310643199,1704613846303,-500.0,0.00022997,2]
[310643200,1704613846313,-150.0,0.00022997,2]
[310643201,1704613846322,-1561.40382765,0.00022997,2]
[310643202,1704613846331,-500.0,0.00022997,2]
[310643203,1704613846341,-26173.66621933,0.00022998,2]
[310643204,1704613846358,-1347.61905402,0.00022998,2]
[310643205,1704613848147,-82280.26867428,0.00022998,2]
[310643206,1704613848159,-6469.39050967,0.00022998,2]
[310643207,1704613848172,-727.61573138,0.00022998,2]
[310643208,1704613848256,15674.02716097,0.00018397,2]
[310643209,1704613850186,1599.76530027,0.00014718,2]
[310643210,1704613850240,1879.73653348,0.00018397,2]
[310643211,1704613850540,310.25020889,0.00017845,2]
[310643212,1704613860767,158.12,0.00020933,2]
[310643213,1704613866248,1891.57573553,0.00018397,2]
[310643214,1704613869357,15674.02716097,0.00018397,2]
[310643215,1704613879910,25000.0,0.00018695,2]
[310643216,1704613891265,14525.28769589,0.00018397,2]
[310643217,1704613936094,151.0,0.00022999,7]
[310643218,1704613937722,175.722675,0.00022999,7]
[310643219,1704613949027,544.18166312,0.00018397,7]
[310643220,1704613953226,8433.99912371,0.00022996,7]
[310643221,1704613971170,544.18166312,0.00018397,7]
[310643222,1704613989027,544.18166312,0.00018397,7]
[310643223,1704613994177,151.0,0.00022999,7]
[310643224,1704613997422,300.0,0.000222,8]
[310643225,1704613999792,700.0,0.000223,8]
[310643226,1704614001882,1100.0,0.000224,8]
[310643227,1704614003985,1500.0,0.000225,8]
[310643228,1704614005012,198.56508516,0.00018397,7]
[310643229,1704614006066,1900.0,0.000226,8]
[310643230,1704614008158,300.0,0.000227,8]
[310643231,1704614010234,300.0,0.000228,8]
[310643232,1704614012339,300.0,0.000229,8]
[310643233,1704614016563,500.0,0.00022997,5]
[310643234,1704614017070,500.0,0.00022998,5]
[310643235,1704614017330,500.0,0.00022999,5]
[310643236,1704614017586,500.0,0.00022999,5]
[310643237,1704614017896,500.0,0.00022999,5]
[310643238,1704614018211,500.0,0.00022999,5]
[310643239,1704614018515,500.0,0.00022999,5]
[310643240,1704614019117,500.0,0.00022999,5]
[310643241,1704614019394,500.0,0.00022999,5]
[310643242,1704614019972,500.0,0.00022999,5]
[310643243,1704614020232,500.0,0.00022999,5]
[310643244,1704614020259,1879.33925955,0.000225,2]
[310643245,1704614020525,5181.21295749,0.000225,2]
[310643246,1704614020648,500.0,0.00022999,5]
[310643247,1704614020926,500.0,0.00022999,5]
[310643248,1704614021111,171.15,0.00018635,2]
[310643249,1704614021455,500.0,0.00022999,5]
[310643250,1704614021617,500.0,0.00022999,5]
[310643251,1704614021893,196.0,0.00022999,5]
[310643252,1704614029492,176.8846555,0.000225,2]
[310643253,1704614036783,4187.54220424,0.000225,2]
[310643254,1704614038372,1879.73653348,0.000225,2]
[310643255,1704614044627,167.84,0.00022313,2]
[310643256,1704614045496,176.8846555,0.000225,2]
[310643257,1704614058262,1879.73653348,0.000225,2]
[310643258,1704614060914,834.27730048,0.000225,4]
[310643259,1704614063485,176.8846555,0.000225,2]
[310643260,1704614078399,1879.73653348,0.000225,2]
[310643261,1704614083488,176.8846555,0.000225,2]
[310643262,1704614088695,844.98023039,0.000225,2]
[310643263,1704614096269,1908.47307177,0.000225,2]
[310643264,1704614100568,844.98023039,0.000225,2]
[310643265,1704614103493,176.8846555,0.000225,2]
[310643266,1704614107539,154.42,0.00022413,2]
[310643267,1704614111965,155.118807,0.00022999,7]
[310643268,1704614116570,844.98023039,0.000225,2]
[310643269,1704614147737,420.31572492,0.00022075,2]
[310643270,1704614148379,1451.54352143,0.00022075,2]
[310643271,1704614153726,481.50574229,0.00018396,2]
[310643272,1704614154821,180.54,0.00022257,10]
[310643273,1704614155051,180.54,0.00024438,10]
[310643274,1704614158386,477.28,0.00022257,2]
[310643275,1704614185773,14327.872814,0.00022438,2]
[310643276,1704614187624,3057.77,0.00022265,2]
[310643277,1704614190374,779.21873097,0.00022075,2]
[310643278,1704614200564,2411.99,0.00022264,2]
[310643279,1704614205578,467.21,0.00022442,2]
[310643280,1704614206926,164.76,0.00022264,2]
[310643281,1704614215099,500.0,0.00022264,2]
[310643282,1704614225224,23900.0,0.00022264,2]
[310643283,1704614244351,166.09,0.00022303,2]
[310643284,1704614248163,369.3,0.00022303,2]
[310643285,1704614248477,200.0,0.00022303,2]
[310643286,1704614254097,204.0,0.0002212,2]